[Event "Croatian 1A League 2022"]
[Site "Porec"]
[Date "2022.10.01"]
[Round "8.20"]
[White "Janzelj, Tim"]
[Black "Fercec, Nenad"]
[Result "0-1"]
[ECO "A46"]
[WhiteElo "2456"]
[BlackElo "2403"]
[Annotator "TA"]
[PlyCount "90"]
[EventDate "2022.09.24"]
[EventType "team-tourn"]
[EventCountry "CRO"]
[SourceTitle "playchess.com"]
[Source "ChessBase"]
[SourceQuality "1"]
[TimeControl "40/5400+30:1800+30"]

{[%evp 10,90,8,-5,0,0,5,-7,4,-27,-18,-13,5,0,0,0,18,4,20,31,54,52,70,59,99,92,118,117,117,106,156,136,157,135,148,126,156,160,163,159,166,161,161,164,179,171,166,161,182,98,123,0,0,-120,-120,-122,-119,-101,-93,-60,0,-128,-137,-247,0,0,72,-569,-513,-667,-658,-636,-620,-711,-693,-693,-686,-662,-662,-645,-619,-606,-550]} 1. d4 {[%emt 0:00:04]} Nf6 {[%emt 0:00:12]} 2. Bg5 {[%emt 0:00:12]} e6 {[%emt 0:01:57]} 3. e4 {[%emt 0:06:29]} h6 {[%emt 0:00:23]} 4. Bxf6 {[%emt 0:00:14]} Qxf6 {[%emt 0:00:08]} 5. Nf3 {[%emt 0:00:47]} d6 {[%emt 0:00:23]} 6. Nc3 {[%emt 0:00:46]} Qe7 {[%emt 0:00:22] A46: 1 d4 Nf6 2 Nf3 e6: Torre, London and Colle Systems.} 7. Bd3 {[%emt 0:02:51]} g6 {[%emt 0:01:29]} 8. Qd2 {[%emt 0:07:56]} Bg7 {[%emt 0:00:27] The position is equal.} 9. O-O-O {[%emt 0:00:46]} O-O {[%emt 0:07:29]} 10. e5 {[%emt 0:03:20]} d5 {[%emt 0:03:27]} 11. h4 {[%emt 0:00:51] [#]} c5 $146 {[%emt 0:00:11]} ({Predecessor:} 11... a6 12. Ne2 Nd7 13. h5 g5 14. c3 c5 15. Bb1 f5 16. exf6 Bxf6 17. Nh2 Rd8 {1-0 (25) Horvath,P (2415)-Preisz,B (2107) Zalakaros 1999}) 12. dxc5 {[%emt 0:26:40]} Nd7 {[%emt 0:01:16]} 13. Rde1 {[%emt 0:00:18]} (13. h5 g5 $15) 13... Nxc5 {[%emt 0:01:41]} 14. Nd4 {[%emt 0:00:32]} Nxd3+ {[%emt 0:00:53]} 15. Qxd3 {[%emt 0:00:29]} Bd7 {[%emt 0:01:07]} 16. f4 {[%emt 0:00:16]} b5 {[%emt 0:01:38]} 17. g4 {[%emt 0:21:07]} (17. Ndxb5 $6 Qb4 $11) 17... b4 {[%emt 0:02:21]} 18. Nce2 {[%emt 0:00:02]} a5 {[%emt 0:05:23]} 19. Kb1 $1 {[%emt 0:02:34]} a4 {[%emt 0:00:29]} (19... b3 $142) 20. h5 $16 {[%emt 0:02:34]} g5 {[%emt 0:24:54]} 21. fxg5 $1 {[%emt 0:00:56]} hxg5 {[%emt 0:00:08]} 22. Nc1 {[%emt 0:09:01] Black must now prevent h6.} Bh6 {[%emt 0:02:47]} 23. Rhf1 {[%emt 0:00:02]} b3 {[%emt 0:01:13]} 24. cxb3 {[%emt 0:00:26]} (24. axb3 $6 a3 $14) 24... axb3 {[%emt 0:00:07]} 25. a3 {[%emt 0:04:32]} (25. Qxb3 Rfc8 $16) (25. Ndxb3 $6 Rfb8 $16) (25. Ncxb3 $6 Ba4 $16) (25. axb3 $6 Rfb8 $11) 25... Bc8 {[%emt 0:09:52]} 26. Rf6 {[%emt 0:01:26]} (26. Ncxb3 Ba6 27. Qe3 Bxf1 28. Rxf1 f6 $11) 26... Bg7 {[%emt 0:02:36]} 27. Rf2 {[%emt 0:01:24]} Ba6 {[%emt 0:08:46]} 28. Qe3 {[%emt 0:00:02]} (28. Qxb3 $6 Bc4 29. Qe3 Ra6 $14) 28... Rfc8 {[%emt 0:00:54]} 29. h6 {[%emt 0:00:08]} (29. Ndxb3 $6 Bc4 $14) (29. Ncxb3 $18 {[%cal Oh5h6]} Bc4 30. Nd2) 29... Bxh6 {[%emt 0:02:15]} 30. Rf6 {[%emt 0:00:40]} ({Better is} 30. Rh2 $16 Bg7 31. Ncxb3) 30... Bg7 $11 {[%emt 0:00:04]} 31. Qxg5 {[%emt 0:05:51] [#]} (31. Rf3 $11) 31... Rxc1+ $1 $17 {[%emt 0:01:01][%mdl 512]} 32. Qxc1 {[%emt 0:00:01][%cal Oe1d1] And now Rd1! would win.} Bd3+ {[%emt 0:03:45]} (32... Bxf6 $6 33. Nc6 Qc7 34. exf6 Bd3+ 35. Ka1 $11) 33. Ka1 {[%emt 0:00:01] Re3 is the strong threat.} Qb4 $1 {[%emt 0:00:25][%mdl 1024] Black has strong compensation.} (33... Bxf6 $6 34. Nc6 Qc7 35. exf6 $11) 34. Nf3 {[%emt 0:02:00]} Be4 {[%emt 0:04:12]} (34... Qxg4 35. Rg1 Qc4 36. Qxc4 dxc4 37. Rf4 $16) (34... Bxf6 $15 35. exf6 Qc4) 35. Re3 {[%emt 0:02:00]} (35. g5 $11) 35... Bc2 $1 {[%emt 0:00:57] Hoping for ...Bf8. This bishop pair is nice.} (35... Bxf6 $6 36. exf6 Bg6 37. Re2 $11) 36. g5 {[%emt 0:00:31] [#]} (36. Re1 $17 {keeps fighting.}) 36... d4 $2 $40 {[%emt 0:00:30][%mdl 128] Black is up to no good. The board is on fire.} (36... Bf8 $1 $19 {[%cal Rf8c5] Strongly threatening ...Bc5.} 37. Re1 Rxa3+ 38. bxa3 Qc3+ 39. Qb2 Qa5) 37. Rf4 $11 {[%emt 0:00:27]} Rd8 {[%emt 0:01:50]} (37... Qb6 $11 38. Rxd4 (38. Nxd4 Rd8 $11) 38... Bf8) 38. Rxd4 $2 {[%emt 0:00:31][%mdl 8192]} (38. axb4 $2 Ra8#) ({Much worse is} 38. g6 fxg6 39. Re2 (39. axb4 $2 Ra8#) 39... Qb5 $11) (38. Re1 $16) 38... Rxd4 $19 {[%emt 0:00:19] Black is clearly winning.} 39. axb4 {[%emt 0:00:01] [#]} Rd8 {[%emt 0:00:14][%cal Rd8a8]} 40. Rxb3 {[%emt 0:00:00]} Bxb3 {[%emt 0:00:00]} 41. Nd2 {[%emt 0:02:10]} Ra8+ {[%emt 0:01:45]} 42. Kb1 {[%emt 0:00:06]} Ba2+ {[%emt 0:00:05]} 43. Kc2 {[%emt 0:01:10]} Rc8+ {[%emt 0:00:08]} 44. Kd1 {[%emt 0:00:03]} Rxc1+ {[%emt 0:00:05]} 45. Kxc1 {[%emt 0:00:02]} Bxe5 {[%emt 0:00:19] Black used his chance.  Weighted Error Value: White=0.48/Black=0.18 (very precise)} 0-1

[Event "Croatian 1A League 2022"]
[Site "Porec"]
[Date "2022.10.01"]
[Round "8.21"]
[White "Krsnik Cohar, Ivan Vihor"]
[Black "Ivekovic, Bozidar"]
[Result "0-1"]
[ECO "B20"]
[WhiteElo "2296"]
[BlackElo "2407"]
[Annotator "TA"]
[PlyCount "92"]
[EventDate "2022.09.24"]
[EventType "team-tourn"]
[EventCountry "CRO"]
[SourceTitle "playchess.com"]
[Source "ChessBase"]
[SourceQuality "1"]
[TimeControl "40/5400+30:1800+30"]

{[%evp 9,92,-3,47,0,24,-40,-33,-54,-37,-52,-22,-20,0,-24,69,13,0,-28,-25,-48,-49,-40,-47,-37,-47,-49,-35,-66,103,118,113,9,78,-13,6,5,10,-26,-19,-7,0,0,0,0,0,0,0,-103,-121,-133,-64,-62,-40,-115,-9,-9,-9,-50,-24,-421,-391,-396,-373,-335,-304,-619,-245,-229,-207,-223,-164,-360,-396,-379,-379,-346,-313,-29987,-29975,-29985,-29983,-29983,-29984,-29981,-11854]} 1. e4 {[%emt 0:00:27]} c5 {[%emt 0:00:07]} 2. b3 {[%emt 0:00:04]} b6 {[%emt 0:01:34]} 3. Bb2 {[%emt 0:00:10]} Bb7 {[%emt 0:00:09]} 4. Nc3 {[%emt 0:00:41]} e6 {[%emt 0:01:31]} 5. f4 {[%emt 0:03:52]} d5 {[%emt 0:12:00]} ({Better is} 5... Be7 $11) 6. Bb5+ {[%emt 0:02:53] B20: Sicilian: Unusual White 2nd moves.} Nd7 $1 {[%emt 0:00:22] [#]} 7. d3 $146 {[%emt 0:01:59]} ({White should try} 7. exd5 $11 exd5 8. Qe2+ Qe7 9. Nf3) ({Predecessor:} 7. Qe2 d4 8. Nd1 Ngf6 9. Nf2 a6 10. Bd3 Qc7 11. Ngh3 Nb8 12. O-O Nc6 13. c3 {0-1 (56) Zawadzka,J (2424)-Padmini,R (2324) Riadh 2017}) 7... a6 {[%emt 0:15:18]} 8. Bxd7+ {[%emt 0:00:08] Black is slightly better.} Qxd7 {[%emt 0:00:01]} 9. Nf3 {[%emt 0:09:47]} Nf6 {[%emt 0:19:11][%cal Rd5e4]} (9... d4 $5 {[%cal Rd4c3]} 10. Nb1 Bd6 $11) 10. Qe2 {[%emt 0:01:08]} dxe4 {[%emt 0:00:08]} 11. dxe4 {[%emt 0:00:08]} Qc6 {[%emt 0:00:07]} (11... Be7 $11) 12. Ne5 {[%emt 0:00:14]} (12. O-O-O $1 $14) 12... Qc7 $11 {[%emt 0:00:06]} 13. O-O {[%emt 0:04:02]} b5 {[%emt 0:07:11][%cal Bb6b5,Bb5b4][%mdl 32]} 14. Ng4 {[%emt 0:04:55]} Nxg4 {[%emt 0:01:13]} 15. Qxg4 {[%emt 0:00:02]} b4 {[%emt 0:00:07]} (15... c4 {is more complex.} 16. f5 h5 17. Qf3 O-O-O) 16. Na4 {[%emt 0:00:35]} Bxe4 {[%emt 0:00:04]} 17. Rae1 {[%emt 0:07:43]} f5 {[%emt 0:01:06]} 18. Qe2 {[%emt 0:01:28]} Qc6 $2 {[%emt 0:18:55]} (18... Bd6 $15 {keeps the upper hand.}) 19. Qh5+ $1 $16 {[%emt 0:00:50][%mdl 1024] White has strong compensation.} Ke7 {[%emt 0:02:49][%cal Be8e7,Be7f7,Bf7g8,Bg8h7][%mdl 32]} (19... g6 $2 20. Qh3 $18) 20. Rd1 {[%emt 0:03:08]} (20. c4 $16) 20... Qe8 {[%emt 0:09:05]} (20... c4 $1 $11) 21. Qg5+ {[%emt 0:07:18]} (21. Qh4+ $1 $16 Kf7 22. Nb6) 21... Kf7 $11 {[%emt 0:00:06]} 22. Nb6 {[%emt 0:00:11] Rd7+ is the strong threat.} h6 {[%emt 0:06:22]} 23. Qh5+ {[%emt 0:07:08]} (23. Qh4 $5 {[%cal Rb6a8]} c4 24. Nxc4 $14 (24. Nxa8 c3 $15)) 23... Kg8 {[%emt 0:00:12]} 24. Qh4 $132 {[%emt 0:00:02][%mdl 2048] White is not holding back} Ra7 {[%emt 0:03:17]} (24... Bxc2 25. Rd2 Be4 26. Nxa8 Qxa8 27. Rd8 $18) 25. Rd8 {[%emt 0:04:16]} Qg6 {[%emt 0:00:13][%csl Ge4][%cal Rg6g2]} 26. Rf2 {[%emt 0:10:07]} Kh7 {[%emt 0:00:04][%cal Oc5c4]} 27. Nd7 $1 {[%emt 0:01:07]} Bd6 {[%emt 0:00:20]} 28. Be5 {[%emt 0:04:29]} (28. Nf6+ $11 {remains equal.} gxf6 29. Rxd6) 28... Rxd8 $17 {[%emt 0:00:34] The board is on fire.} 29. Qxd8 {[%emt 0:00:09]} Ra8 {[%emt 0:00:01]} (29... Qf7 $17 30. Nb6 Bxe5 31. fxe5 Bc6) 30. Qb6 $15 {[%emt 0:01:26]} Be7 {[%emt 0:00:31][%cal Oc5c4] This bishop pair is nice.} 31. Nxc5 {[%emt 0:01:38] [#]} (31. Rd2 $15) 31... Bxc5 {[%emt 0:00:35]} (31... Rd8 $1 $17 {[%cal Rd8d1] ( -> ...Rd1+)} 32. Nd3 (32. Nxe4 fxe4 33. g3 Rd5 $19) 32... Rd5) 32. Qxc5 $11 {[%emt 0:00:13]} Rd8 {[%emt 0:00:02]} 33. Bd6 {[%emt 0:01:34]} Qg4 {[%emt 0:00:11] aiming for ...Qd1+.} (33... Qf6 $5 {[%cal Rf6a1]}) 34. Rd2 {[%emt 0:00:01][%mdl 8192] [#] Inhibits Qd1+. Loses the game.} (34. Qd4 $11 {and White has nothing to worry.}) 34... Bxg2 $1 $19 {[%emt 0:00:15][%cal Be4g2,Bg2h3,Bh3g4][%mdl 544] Strongly threatening ...Bh3+.} 35. h3 {[%emt 0:08:57]} Bxh3+ {[%emt 0:00:12]} 36. Kh2 {[%emt 0:00:06]} e5 {[%emt 0:01:54] Threatens to win with ...Qxf4+.} ({Don't blunder} 36... Bf1 $2 37. Qf2 Qh3+ 38. Kg1) 37. Qxe5 {[%emt 0:03:30]} (37. Qf2 exf4 38. Bxf4 Rxd2 39. Bxd2) 37... Qh5 $2 {[%emt 0:00:17]} (37... Bf1 38. Qe7 Qh5+ 39. Kg1 Re8 40. Qxe8 Qxe8 41. Kxf1 Qe3) 38. Qe3 {[%emt 0:02:13]} Bg4+ {[%emt 0:00:18]} 39. Kg2 {[%emt 0:00:45]} a5 {[%emt 0:01:16] White must now prevent ...Rc8.} 40. c4 $2 {[%emt 0:00:00]} (40. Bxb4 {was necessary.} Re8 41. Be7) 40... bxc3 $1 {[%emt 0:00:00]} 41. Qxc3 {[%emt 0:07:41]} Qe8 {[%emt 0:05:47] And now ...Qe4+ would win.} 42. Be5 {[%emt 0:03:35] [#]} Rc8 {[%emt 0:00:07]} ({And not} 42... Rxd2+ 43. Qxd2 a4 44. Qd5 $17) 43. Qxa5 {[%emt 0:08:43]} (43. Qe3 $19) 43... Qh5 {[%emt 0:02:59] Black mates.} 44. Bc7 {[%emt 0:00:54]} Qh3+ {[%emt 0:01:47]} 45. Kf2 {[%emt 0:01:10]} Qf3+ {[%emt 0:02:17]} 46. Kg1 {[%emt 0:00:22]} Qe3+ {[%emt 0:00:18] Weighted Error Value: White=0.65/Black=0.30} 0-1

[Event "Croatian 1A League 2022"]
[Site "Porec"]
[Date "2022.10.01"]
[Round "8.22"]
[White "Ostovic, Matija"]
[Black "Franic, Milan"]
[Result "1/2-1/2"]
[ECO "E46"]
[WhiteElo "2386"]
[BlackElo "2365"]
[Annotator "TA"]
[PlyCount "29"]
[EventDate "2022.09.24"]
[EventType "team-tourn"]
[EventCountry "CRO"]
[SourceTitle "playchess.com"]
[Source "ChessBase"]
[SourceQuality "1"]
[TimeControl "40/5400+30:1800+30"]

{[%evp 9,29,0,0,0,0,-9,7,-4,4,0,0,-7,0,-8,-1,7,0,-9,1,-4,73,-22]} 1. d4 {[%emt 0:00:06]} Nf6 {[%emt 0:03:27]} 2. c4 {[%emt 0:00:07]} e6 {[%emt 0:00:02]} 3. Nc3 {[%emt 0:00:07]} Bb4 {[%emt 0:00:06][%cal Bf8b4,Bb4a5,Ba5c7][%mdl 32]} 4. e3 {[%emt 0:00:12]} O-O {[%emt 0:00:35]} 5. Nge2 {[%emt 0:00:08]} c6 {[%emt 0:00:19]} 6. a3 {[%emt 0:00:35] E46: Nimzo-Indian: Rubinstein: 4 e3 0-0 5 Ne2 without early Bd3.} Ba5 {[%emt 0:00:04]} 7. b4 {[%emt 0:01:56][%cal Bb2b4,Bb4b5][%mdl 32]} Bc7 {[%emt 0:00:04]} 8. e4 {[%emt 0:03:57] The position is equal.} a5 {[%emt 0:02:47] [#] Threatens to win with ...axb4.} 9. e5 {[%emt 0:04:40]} Ne8 {[%emt 0:00:09] White must now prevent ...axb4.} 10. b5 {[%emt 0:05:04]} f6 {[%emt 0:00:13]} 11. exf6 {[%emt 0:05:23]} Qxf6 {[%emt 0:03:25]} 12. Be3 {[%emt 0:04:42]} d5 {[%emt 0:00:19]} 13. Ng3 {[%emt 0:02:56] [#]} Nd7 $146 {[%emt 0:07:09]} ({Predecessor:} 13... c5 14. cxd5 cxd4 15. Bxd4 Qf7 16. Bc4 Nd6 17. Ba2 exd5 18. O-O Be6 19. b6 Bd8 20. Bc5 Qd7 21. Bxd5 Be7 22. Re1 Bxd5 23. Nxd5 Bd8 24. Nc7 {1-0 (24) Zhao,J (2638)-Ganguly,S (2640) Chess.com INT 2020}) 14. Be2 {[%emt 0:07:34]} Nb6 {[%emt 0:13:56] [#]} (14... Nd6 $11 {remains equal.}) 15. O-O {[%emt 0:20:28] An interesting draw.  Weighted Error Value: White=0.03 (flawless) /Black=0.15 (very precise)} (15. c5 $1 $16 {[%cal Rc5b6]} Nd7 16. O-O) 1/2-1/2

[Event "Croatian 1A League 2022"]
[Site "Porec"]
[Date "2022.10.01"]
[Round "8.23"]
[White "Glavas, Dragan"]
[Black "Ivekovic, Zvonimir"]
[Result "0-1"]
[ECO "A85"]
[WhiteElo "2249"]
[BlackElo "2380"]
[Annotator "TA"]
[PlyCount "84"]
[EventDate "2022.09.24"]
[EventType "team-tourn"]
[EventCountry "CRO"]
[SourceTitle "playchess.com"]
[Source "ChessBase"]
[SourceQuality "1"]
[TimeControl "40/5400+30:1800+30"]

{[%evp 9,84,24,39,31,19,9,4,-25,22,-51,-41,-62,-54,-58,-45,-67,-9,-12,-8,-14,-22,-21,-20,-16,-10,-18,58,-91,-88,-126,-63,-62,-71,-209,-201,-251,-216,-493,-493,-486,-486,-486,-488,-474,-466,-648,-611,-1927,-593,-575,-568,-659,-644,-631,-638,-980,-923,-12793,-10980,-6127,-6165,-3303,-1610,-1579,-1434,-1567,-1258,-5251,-5081,-4710,-2296,-29978,-29979,-29979,-29980,-29977,-5212]} 1. d4 {[%emt 0:00:02]} f5 {[%emt 0:00:05]} 2. c4 {[%emt 0:04:05][%cal Bc2c4,Bc4c5][%mdl 32]} Nf6 {[%emt 0:00:05]} 3. Nc3 {[%emt 0:00:10]} e6 {[%emt 0:00:11]} 4. a3 {[%emt 0:00:21]} d5 {[%emt 0:02:01]} 5. g3 {[%emt 0:00:44] [#]} Bd6 $146 {[%emt 0:07:23]} ({Predecessor:} 5... a5 6. Bf4 Bd6 7. Bxd6 Qxd6 8. c5 Qe7 9. Nf3 O-O 10. e3 b6 11. cxb6 cxb6 12. Qb3 Nbd7 {½-½ (34) Storck,M (1927)-Steiner,K (1930) Germany 2017}) 6. c5 {[%emt 0:02:53] A85: Dutch Defence: 2 c4 Nf6 3 Nc3.} Be7 {[%emt 0:00:01]} 7. b4 {[%emt 0:00:10]} O-O {[%emt 0:00:20]} 8. Bg2 {[%emt 0:01:15] The position is equal.} Ne4 {[%emt 0:02:09]} (8... b6 $142) 9. Qb3 {[%emt 0:00:58]} (9. Nxe4 $11 dxe4 10. e3) 9... Bf6 {[%emt 0:01:12]} 10. Nf3 {[%emt 0:03:05]} Nc6 {[%emt 0:01:54]} 11. e3 {[%emt 0:00:13]} b6 {[%emt 0:00:46]} 12. Bb2 {[%emt 0:04:12]} Rb8 {[%emt 0:02:16] Black is more active.} (12... bxc5 $15 13. bxc5 Rb8) 13. cxb6 $11 {[%emt 0:01:28]} cxb6 {[%emt 0:00:38]} 14. Rc1 {[%emt 0:00:26]} Qd7 {[%emt 0:22:48]} 15. Nxe4 {[%emt 0:12:18]} fxe4 {[%emt 0:05:45]} 16. Nd2 {[%emt 0:00:46]} Ba6 {[%emt 0:00:18]} 17. Qa4 $1 {[%emt 0:05:53][%csl LRa6,LRc6]} Rfc8 {[%emt 0:16:07]} 18. Bf1 {[%emt 0:14:08]} (18. Qxa6 $14 {is the one way to stay ahead.} b5 19. Nb3) 18... Bxf1 $17 {[%emt 0:00:57]} 19. Rxf1 {[%emt 0:00:43]} Rc7 {[%emt 0:01:56]} (19... a5 $17 {...axb4 is the strong threat.} 20. f3 axb4 21. fxe4 Ra8) 20. Qb3 $15 {[%emt 0:06:20]} Rbc8 {[%emt 0:01:54]} 21. Ke2 {[%emt 0:01:03] Loses the game.} (21. f3 $17 {was called for.}) 21... Qf7 $19 {[%emt 0:04:39] aiming for ...Qh5+.} 22. f3 {[%emt 0:09:24]} Qh5 {[%emt 0:00:30]} 23. Nxe4 $2 {[%emt 0:00:33]} (23. Kd1) 23... dxe4 {[%emt 0:00:09]} 24. Qxe6+ {[%emt 0:00:08]} Kh8 {[%emt 0:00:47]} 25. Qxe4 {[%emt 0:00:36]} Qxh2+ {[%emt 0:07:47]} 26. Rf2 {[%emt 0:00:43]} Qxg3 {[%emt 0:00:29]} 27. f4 {[%emt 0:05:19]} Re7 {[%emt 0:06:24]} 28. Rxc6 {[%emt 0:07:50]} Qg4+ {[%emt 0:00:08]} (28... Rxe4 $2 {leads to mate.} 29. Rxc8+) (28... Rce8 $142 29. Qxe7 Bxe7) 29. Qf3 {[%emt 0:00:10]} Qxf3+ {[%emt 0:00:05][%mdl 64] Remove Defender} 30. Kxf3 {[%emt 0:00:11]} Rxc6 {[%emt 0:00:03]} 31. e4 {[%emt 0:00:13]} Rec7 {[%emt 0:02:09] And now ...Rc2 would win.} 32. Rd2 {[%emt 0:03:29]} Rc2 {[%emt 0:00:15]} 33. Ke3 {[%emt 0:00:05]} Rxd2 {[%emt 0:01:01]} 34. Kxd2 {[%emt 0:00:11]} h5 {[%emt 0:00:14]} 35. e5 {[%emt 0:00:11]} Be7 {[%emt 0:00:53]} 36. d5 {[%emt 0:00:32]} h4 {[%emt 0:00:12] Strongly threatening ...h3.} 37. d6 {[%emt 0:00:11]} Rd7 {[%emt 0:00:53] White must now prevent ...h3.} 38. Ke3 {[%emt 0:00:17] [#]} Bxd6 $1 {[%emt 0:01:01]} 39. exd6 {[%emt 0:00:31]} (39. Kf3 Be7) 39... Rxd6 {[%emt 0:00:02] ( -> ...h3)} 40. Be5 {[%emt 0:00:00]} Re6 {[%emt 0:00:00] Black mates.} 41. Kf3 {[%emt 0:00:56] [#]} Rxe5 $1 {[%emt 0:00:59]} 42. fxe5 {[%emt 0:00:05]} Kg8 {[%emt 0:00:01] Weighted Error Value: White=0.91/Black=0.35} 0-1

[Event "Croatian 1A League 2022"]
[Site "Porec"]
[Date "2022.10.01"]
[Round "8.24"]
[White "Zovko, Mario"]
[Black "Rubil, Marko"]
[Result "1/2-1/2"]
[ECO "C45"]
[WhiteElo "2306"]
[BlackElo "2270"]
[Annotator "TA"]
[PlyCount "45"]
[EventDate "2022.09.24"]
[EventType "team-tourn"]
[EventCountry "CRO"]
[SourceTitle "playchess.com"]
[Source "ChessBase"]
[SourceQuality "1"]
[TimeControl "40/5400+30:1800+30"]

{[%evp 16,45,0,0,19,0,0,0,26,0,0,0,0,0,0,0,-8,-4,0,0,0,0,0,0,0,0,0,0,0,0,0,0]} 1. e4 {[%emt 0:05:44]} e5 {[%emt 0:00:11]} 2. Nf3 {[%emt 0:00:11]} Nc6 {[%emt 0:00:06]} 3. d4 {[%emt 0:00:06]} exd4 {[%emt 0:00:40]} 4. Nxd4 {[%emt 0:02:08]} Nf6 {[%emt 0:01:22][%cal Bg8f6,Bf6d5,Bd5b6][%mdl 32]} 5. Nxc6 {[%emt 0:01:40]} bxc6 {[%emt 0:02:20]} 6. e5 {[%emt 0:00:08]} Qe7 {[%emt 0:03:29]} 7. Qe2 {[%emt 0:01:28]} Nd5 {[%emt 0:00:21]} 8. c4 {[%emt 0:04:25]} Nb6 {[%emt 0:02:55]} 9. Nc3 {[%emt 0:02:04]} Ba6 {[%emt 0:02:34] C45: Scotch Game.} 10. b3 {[%emt 0:04:59]} O-O-O $1 {[%emt 0:06:39]} 11. Bb2 {[%emt 0:05:30]} Re8 {[%emt 0:01:45]} 12. f4 {[%emt 0:03:42]} f6 {[%emt 0:04:52][%cal Rf6e5] The position is equal.} 13. O-O-O {[%emt 0:00:17]} fxe5 {[%emt 0:00:49]} 14. fxe5 {[%emt 0:00:14]} Qxe5 {[%emt 0:01:22]} 15. Qxe5 {[%emt 0:00:11]} Rxe5 {[%emt 0:00:02]} 16. a4 {[%emt 0:00:10] has lost popularity (16.Bd3).} d6 {[%emt 0:03:12]} 17. g3 {[%emt 0:01:32]} Be7 {[%emt 0:00:45]} 18. Bg2 {[%emt 0:01:23]} Bg5+ {[%emt 0:01:49]} 19. Kc2 {[%emt 0:00:08] [#] Threatens to win with Ne4.} Rhe8 {[%emt 0:00:24][%cal Oe5e2] ...Re2+! is the strong threat.} 20. Bxc6 {[%emt 0:00:08]} Nd7 {[%emt 0:00:14] [#]} 21. Rd5 $146 {[%emt 0:00:06]} ({Predecessor:} 21. Rhf1 Bb7 22. Bxb7+ Kxb7 23. h4 Bf6 24. Bc1 R5e6 25. Bd2 Nc5 26. Rde1 Bxc3 27. Kxc3 {0-1 (64) Grabowski,B (1940)-Eichhorn,G ICCF email 2016}) 21... Rxd5 {[%emt 0:04:19]} 22. Bxd5 {[%emt 0:01:23]} Bb7 {[%emt 0:03:34]} 23. Bxb7+ {[%emt 0:05:50] An interesting draw.  Weighted Error Value: White=0.02 (flawless) /Black=0.00 (flawless)} 1/2-1/2

[Event "Croatian 1A League 2022"]
[Site "Porec"]
[Date "2022.10.01"]
[Round "8.25"]
[White "Kadric, Denis"]
[Black "Kozul, Zdenko"]
[Result "1-0"]
[ECO "B24"]
[WhiteElo "2561"]
[BlackElo "2549"]
[Annotator "TA"]
[PlyCount "47"]
[EventDate "2022.09.24"]
[EventType "team-tourn"]
[EventCountry "CRO"]
[SourceTitle "playchess.com"]
[Source "ChessBase"]
[SourceQuality "1"]
[TimeControl "40/5400+30:1800+30"]

{[%evp 14,47,17,-20,-28,-35,-34,-34,-25,-30,-15,-23,-15,-24,-6,-2,0,0,0,0,0,0,93,99,99,101,94,92,83,98,1268,1251,1228,1197,1288,1225]} 1. e4 {[%emt 0:01:42]} c5 {[%emt 0:00:04]} 2. Ne2 {[%emt 0:01:16]} d6 {[%emt 0:08:26]} 3. Nbc3 {[%emt 0:00:10]} Nf6 {[%emt 0:00:23]} 4. g3 {[%emt 0:00:04]} Nc6 {[%emt 0:07:46]} 5. Bg2 {[%emt 0:00:03]} e6 {[%emt 0:00:04][%cal Be7e6,Be6e5][%mdl 32]} 6. O-O {[%emt 0:00:07]} Be7 {[%emt 0:00:06]} 7. h3 {[%emt 0:00:08]} O-O {[%emt 0:01:03]} 8. f4 {[%emt 0:00:31]} d5 {[%emt 0:04:40][%cal Bd6d5,Bd5d4][%mdl 32] B24: Closed Sicilian: 3 g3 sidelines.} 9. d3 {[%emt 0:00:23]} d4 {[%emt 0:03:02]} 10. Nb1 {[%emt 0:00:20][%cal Bc3b1,Bb1d2,Bd2f3][%mdl 32]} e5 {[%emt 0:00:08] Black is slightly better.} 11. Nd2 {[%emt 0:00:45]} Nd7 {[%emt 0:01:42]} 12. Nf3 {[%emt 0:02:09] [#]} a5 $146 {[%emt 0:06:47]} ({Predecessor:} 12... b5 13. g4 a5 14. a4 bxa4 15. Rxa4 Ba6 16. Rf2 Bb5 17. Ra1 c4 18. Ng3 Bc5 19. f5 a4 20. Rb1 Nb4 {0-1 (32) Mladenov,E (2157)-Arnaudov,P (2453) Ognjanovo 2011}) 13. a4 {[%emt 0:20:08]} exf4 {[%emt 0:01:50]} 14. gxf4 {[%emt 0:00:32]} g6 {[%emt 0:16:25]} 15. Ng3 {[%emt 0:02:38]} Ra6 {[%emt 0:04:31]} 16. Qe2 {[%emt 0:03:50]} Re8 {[%emt 0:01:19]} 17. b3 {[%emt 0:02:58]} f5 {[%emt 0:02:52]} (17... Nf8 $11 {keeps the balance.}) 18. exf5 $16 {[%emt 0:08:54]} Bh4 {[%emt 0:02:26]} 19. Qf2 {[%emt 0:00:06]} Nb4 {[%emt 0:06:42]} 20. Nxh4 {[%emt 0:16:55]} Qxh4 {[%emt 0:00:12]} 21. fxg6 {[%emt 0:02:43]} Nxc2 $2 {[%emt 0:05:24][%mdl 8192] [#]} 22. Bd5+ $18 {[%emt 0:05:22] White is clearly winning.} ({Less strong is} 22. Qxc2 Qxg3 23. f5 Kg7 $18) 22... Rae6 {[%emt 0:04:12]} 23. f5 {[%emt 0:00:04][%cal Bf4f5,Bf5e6][%mdl 32]} Nf6 {[%emt 0:02:05]} 24. fxe6 {[%emt 0:00:12] Weighted Error Value: White=0.03 (flawless) /Black=0.16 (very precise)} 1-0